[Event "Titled Tuesday Blitz January 31 Early 2023"]
[White "Biastoch, Bennet"]
[Black "Rakhmanov, Aleksandr"]
[WhiteFideId "12939889"]
[BlackFideId "4173708"]
[WhiteElo "2257"]
[BlackElo "2632"]
[Result "1-0"]
[Round "03"]
[TimeControl "180+2"]
[Date "2023.01.31"]
[WhiteClock "0:00:26"]
[BlackClock "0:00:07"]

1. e4 {[%clk 0:03:00]}  c5 {[%clk 0:02:59]} 2. Nf3 {[%clk 0:03:00]}  Nf6 {[%clk 0:03:00]} 3. Nc3 {[%clk 0:02:53]}  d5 {[%clk 0:02:59]} 4. exd5 {[%clk 0:02:49]}  Nxd5 {[%clk 0:03:00]} 5. Bb5+ {[%clk 0:02:50]}  Bd7 {[%clk 0:03:00]} 6. Bxd7+ {[%clk 0:02:43]}  Qxd7 {[%clk 0:03:01]} 7. O-O {[%clk 0:02:42]}  Nc6 {[%clk 0:03:01]} 8. Nxd5 {[%clk 0:02:37]}  Qxd5 {[%clk 0:03:02]} 9. d3 {[%clk 0:02:37]}  g6 {[%clk 0:03:01]} 10. Bd2 {[%clk 0:02:35]}  Bg7 {[%clk 0:03:01]} 11. Bc3 {[%clk 0:02:35]}  Nd4 {[%clk 0:03:01]} 12. Nxd4 {[%clk 0:02:33]}  cxd4 {[%clk 0:03:02]} 13. Bb4 {[%clk 0:02:31]}  a5 {[%clk 0:03:01]} 14. Ba3 {[%clk 0:02:29]}  b5 {[%clk 0:03:01]} 15. b3 {[%clk 0:02:16]}  Ra7 {[%clk 0:02:49]} 16. Re1 {[%clk 0:02:14]}  Bf6 {[%clk 0:02:47]} 17. Re4 {[%clk 0:01:54]}  O-O {[%clk 0:02:45]} 18. Qe2 {[%clk 0:01:53]}  Re8 {[%clk 0:02:45]} 19. Re1 {[%clk 0:01:51]}  e6 {[%clk 0:02:42]} 20. Qf3 {[%clk 0:01:43]}  Bg7 {[%clk 0:02:29]} 21. Bc1 {[%clk 0:01:43]}  Rc8 {[%clk 0:02:17]} 22. Qd1 {[%clk 0:01:35]}  a4 {[%clk 0:02:13]} 23. Bf4 {[%clk 0:01:31]}  axb3 {[%clk 0:02:06]} 24. axb3 {[%clk 0:01:29]}  Ra2 {[%clk 0:02:05]} 25. R4e2 {[%clk 0:01:26]}  Qc5 {[%clk 0:01:32]} 26. h4 {[%clk 0:01:08]}  Rxc2 {[%clk 0:01:17]} 27. b4 {[%clk 0:01:01]}  Qc3 {[%clk 0:01:10]} 28. Rxc2 {[%clk 0:00:53]}  Qxc2 {[%clk 0:01:11]} 29. Qf3 {[%clk 0:00:51]}  Qc3 {[%clk 0:00:56]} 30. Rc1 {[%clk 0:00:51]}  Qxc1+ {[%clk 0:00:40]} 31. Bxc1 {[%clk 0:00:52]}  Rxc1+ {[%clk 0:00:40]} 32. Kh2 {[%clk 0:00:53]}  Be5+ {[%clk 0:00:33]} 33. g3 {[%clk 0:00:53]}  h5 {[%clk 0:00:32]} 34. Qb7 {[%clk 0:00:49]}  Rc2 {[%clk 0:00:20]} 35. Kg2 {[%clk 0:00:49]}  Bd6 {[%clk 0:00:19]} 36. Qxb5 {[%clk 0:00:46]}  Kg7 {[%clk 0:00:14]} 37. Qa6 {[%clk 0:00:43]}  Bxb4 {[%clk 0:00:13]} 38. Qa4 {[%clk 0:00:40]}  Rb2 {[%clk 0:00:13]} 39. Kf1 {[%clk 0:00:31]}  Bc3 {[%clk 0:00:12]} 40. Qc6 {[%clk 0:00:27]}  Rd2 {[%clk 0:00:12]} 41. Qe4 {[%clk 0:00:27]}  Rd1+ {[%clk 0:00:12]} 42. Kg2 {[%clk 0:00:27]}  Re1 {[%clk 0:00:13]} 43. Qf3 {[%clk 0:00:27]}  Bd2 {[%clk 0:00:11]} 44. g4 {[%clk 0:00:25]}  hxg4 {[%clk 0:00:09]} 45. Qxg4 {[%clk 0:00:26]}  Bc3 {[%clk 0:00:05]} 46. h5 {[%clk 0:00:26]}  Re5 {[%clk 0:00:05]} 47. hxg6 {[%clk 0:00:23]}  f6 {[%clk 0:00:04]} 48. f4 {[%clk 0:00:22]}  Rf5 {[%clk 0:00:05]} 49. Kf3 {[%clk 0:00:20]}  Bd2 {[%clk 0:00:05]} 50. Qh3 {[%clk 0:00:20]}  Rxf4+ {[%clk 0:00:05]} 51. Ke2 {[%clk 0:00:21]}  Kxg6 {[%clk 0:00:04]} 52. Kxd2 {[%clk 0:00:21]}  e5 {[%clk 0:00:05]} 53. Qg3+ {[%clk 0:00:21]}  Kf5 {[%clk 0:00:05]} 54. Qh3+ {[%clk 0:00:21]}  Kg5 {[%clk 0:00:05]} 55. Ke2 {[%clk 0:00:21]}  Rg4 {[%clk 0:00:04]} 56. Qh8 {[%clk 0:00:21]}  Rg3 {[%clk 0:00:03]} 57. Qg7+ {[%clk 0:00:21]}  Kh4 {[%clk 0:00:02]} 58. Qxf6+ {[%clk 0:00:21]}  Rg5 {[%clk 0:00:01]} 59. Kf3 {[%clk 0:00:20]}  Kh5 {[%clk 0:00:02]} 60. Qh8+ {[%clk 0:00:20]}  Kg6 {[%clk 0:00:03]} 61. Ke4 {[%clk 0:00:20]}  Kf7 {[%clk 0:00:02]} 62. Qh7+ {[%clk 0:00:20]}  Kf6 {[%clk 0:00:02]} 63. Qh8+ {[%clk 0:00:19]}  Kg6 {[%clk 0:00:03]} 64. Qg8+ {[%clk 0:00:20]}  Kh6 {[%clk 0:00:03]} 65. Qxg5+ {[%clk 0:00:19]}  Kxg5 {[%clk 0:00:04]} 66. Kxe5 {[%clk 0:00:20]}  Kg6 {[%clk 0:00:04]} 67. Kxd4 {[%clk 0:00:21]}  Kf6 {[%clk 0:00:04]} 68. Kd5 {[%clk 0:00:22]}  Ke7 {[%clk 0:00:05]} 69. Kc6 {[%clk 0:00:22]}  Ke6 {[%clk 0:00:05]} 70. d4 {[%clk 0:00:22]}  Ke7 {[%clk 0:00:06]} 71. d5 {[%clk 0:00:23]}  Ke8 {[%clk 0:00:06]} 72. Kc7 {[%clk 0:00:23]}  Ke7 {[%clk 0:00:06]} 73. d6+ {[%clk 0:00:24]}  Ke6 {[%clk 0:00:06]} 74. d7 {[%clk 0:00:25]}  Kd5 {[%clk 0:00:06]} 75. d8=Q+ {[%clk 0:00:26]}  Kc4 {[%clk 0:00:07]} 76. Qd6 {[%clk 0:00:26]}  Kb3 {[%clk 0:00:07]} 77. Qc5 {[%clk 0:00:26]} 1-0


[Site "https://www.chess.com"]

[Event "Titled Tuesday Blitz January 31 Early 2023"]
[White "Koepke, Christian"]
[Black "Andreikin, Dmitry"]
[WhiteFideId "4655737"]
[BlackFideId "4158814"]
[WhiteElo "2308"]
[BlackElo "2729"]
[Result "0-1"]
[Round "03"]
[TimeControl "180+2"]
[Date "2023.01.31"]
[WhiteClock "0:00:16"]
[BlackClock "0:01:41"]

1. e4 {[%clk 0:03:00]}  c5 {[%clk 0:02:14]} 2. Be2 {[%clk 0:02:57]}  Nc6 {[%clk 0:02:13]} 3. f4 {[%clk 0:02:57]}  g6 {[%clk 0:02:12]} 4. Nf3 {[%clk 0:02:57]}  Bg7 {[%clk 0:02:12]} 5. O-O {[%clk 0:02:58]}  d6 {[%clk 0:02:11]} 6. c3 {[%clk 0:02:58]}  Nf6 {[%clk 0:02:11]} 7. d3 {[%clk 0:02:58]}  O-O {[%clk 0:02:10]} 8. Kh1 {[%clk 0:02:58]}  b5 {[%clk 0:02:10]} 9. a3 {[%clk 0:02:55]}  a5 {[%clk 0:02:09]} 10. Be3 {[%clk 0:02:55]}  Bb7 {[%clk 0:02:07]} 11. Nbd2 {[%clk 0:02:52]}  b4 {[%clk 0:02:08]} 12. d4 {[%clk 0:02:52]}  bxc3 {[%clk 0:02:03]} 13. bxc3 {[%clk 0:02:52]}  cxd4 {[%clk 0:02:03]} 14. cxd4 {[%clk 0:02:52]}  e6 {[%clk 0:02:03]} 15. Rb1 {[%clk 0:02:44]}  Rb8 {[%clk 0:02:03]} 16. Qa4 {[%clk 0:02:17]}  Ne7 {[%clk 0:02:02]} 17. Rfc1 {[%clk 0:01:58]}  Bxe4 {[%clk 0:01:57]} 18. Rxb8 {[%clk 0:01:52]}  Qxb8 {[%clk 0:01:57]} 19. Nxe4 {[%clk 0:01:48]}  Nxe4 {[%clk 0:01:58]} 20. Qxa5 {[%clk 0:01:49]}  Nd5 {[%clk 0:01:58]} 21. Bg1 {[%clk 0:01:39]}  Nxf4 {[%clk 0:01:58]} 22. Bb5 {[%clk 0:01:31]}  d5 {[%clk 0:01:51]} 23. Ne5 {[%clk 0:01:08]}  Bxe5 {[%clk 0:01:49]} 24. dxe5 {[%clk 0:01:09]}  Qxe5 {[%clk 0:01:48]} 25. Qe1 {[%clk 0:00:55]}  Qb2 {[%clk 0:01:46]} 26. Bf1 {[%clk 0:00:37]}  Qxa3 {[%clk 0:01:46]} 27. Bd4 {[%clk 0:00:26]}  Nd3 {[%clk 0:01:45]} 28. Bxd3 {[%clk 0:00:16]}  Qxd3 {[%clk 0:01:46]} 29. Ba1 {[%clk 0:00:16]}  d4 {[%clk 0:01:42]} 30. Rd1 {[%clk 0:00:16]}  Qxd1 {[%clk 0:01:41]} 31. Qxd1 {[%clk 0:00:16]}  Nf2+ {[%clk 0:01:41]} 0-1


[Site "https://www.chess.com"]

[Event "Titled Tuesday Blitz January 31 Early 2023"]
[White "Caruana, Fabiano"]
[Black "Sipila, Vilka"]
[WhiteFideId "2020009"]
[BlackFideId "505455"]
[WhiteElo "2764"]
[BlackElo "2427"]
[Result "1-0"]
[Round "03"]
[TimeControl "180+2"]
[Date "2023.01.31"]
[WhiteClock "0:00:55"]
[BlackClock "0:00:07"]

1. d4 {[%clk 0:02:54]}  f5 {[%clk 0:02:59]} 2. c4 {[%clk 0:02:53]}  Nf6 {[%clk 0:02:57]} 3. Nc3 {[%clk 0:02:53]}  g6 {[%clk 0:02:58]} 4. Bf4 {[%clk 0:02:52]}  Bg7 {[%clk 0:02:53]} 5. e3 {[%clk 0:02:51]}  d6 {[%clk 0:02:54]} 6. h3 {[%clk 0:02:47]}  Nc6 {[%clk 0:02:52]} 7. Nf3 {[%clk 0:02:45]}  e6 {[%clk 0:02:48]} 8. d5 {[%clk 0:02:38]}  e5 {[%clk 0:02:36]} 9. Bh2 {[%clk 0:02:26]}  Nb8 {[%clk 0:02:31]} 10. Be2 {[%clk 0:02:26]}  Na6 {[%clk 0:02:28]} 11. O-O {[%clk 0:02:25]}  O-O {[%clk 0:02:25]} 12. Rb1 {[%clk 0:02:19]}  Nc5 {[%clk 0:02:24]} 13. Nd2 {[%clk 0:02:13]}  a5 {[%clk 0:02:23]} 14. b3 {[%clk 0:02:10]}  e4 {[%clk 0:02:22]} 15. a3 {[%clk 0:02:08]}  Nfd7 {[%clk 0:02:19]} 16. Nb5 {[%clk 0:02:06]}  Ne5 {[%clk 0:02:18]} 17. Bxe5 {[%clk 0:02:03]}  Bxe5 {[%clk 0:02:15]} 18. b4 {[%clk 0:02:04]}  axb4 {[%clk 0:02:15]} 19. axb4 {[%clk 0:02:05]}  Nd7 {[%clk 0:02:13]} 20. c5 {[%clk 0:02:05]}  dxc5 {[%clk 0:02:07]} 21. Nc4 {[%clk 0:01:56]}  cxb4 {[%clk 0:02:05]} 22. d6 {[%clk 0:01:54]}  cxd6 {[%clk 0:01:52]} 23. Ncxd6 {[%clk 0:01:54]}  Nf6 {[%clk 0:01:44]} 24. Rxb4 {[%clk 0:01:51]}  Be6 {[%clk 0:01:29]} 25. Bc4 {[%clk 0:01:47]}  Qe7 {[%clk 0:01:24]} 26. Qb3 {[%clk 0:01:39]}  Bxc4 {[%clk 0:01:23]} 27. Nxc4 {[%clk 0:01:35]}  Kh8 {[%clk 0:01:12]} 28. Nxe5 {[%clk 0:01:33]}  Qxe5 {[%clk 0:01:13]} 29. Nd4 {[%clk 0:01:33]}  Qd5 {[%clk 0:00:32]} 30. Qb1 {[%clk 0:01:33]}  Rf7 {[%clk 0:00:22]} 31. Rc1 {[%clk 0:01:27]}  Kg7 {[%clk 0:00:15]} 32. Rb6 {[%clk 0:01:13]}  Qa2 {[%clk 0:00:12]} 33. Qb4 {[%clk 0:01:09]}  Qa3 {[%clk 0:00:10]} 34. Qd2 {[%clk 0:01:01]}  Qa5 {[%clk 0:00:08]} 35. Ne6+ {[%clk 0:00:57]}  Kh6 {[%clk 0:00:08]} 36. Qd6 {[%clk 0:00:56]}  Qa3 {[%clk 0:00:07]} 37. Qf4+ {[%clk 0:00:55]} 1-0


[Site "https://www.chess.com"]

[Event "Titled Tuesday Blitz January 31 Early 2023"]
[White "Souleidis, Georgios"]
[Black "Chigaev, Maksim"]
[WhiteFideId "4206827"]
[BlackFideId "4108116"]
[WhiteElo "2419"]
[BlackElo "2628"]
[Result "0-1"]
[Round "03"]
[TimeControl "180+2"]
[Date "2023.01.31"]
[WhiteClock "0:00:01"]
[BlackClock "0:00:08"]

1. e4 {[%clk 0:02:58]}  c5 {[%clk 0:03:00]} 2. Nf3 {[%clk 0:02:58]}  e6 {[%clk 0:03:01]} 3. g3 {[%clk 0:02:58]}  Nc6 {[%clk 0:03:01]} 4. Bg2 {[%clk 0:02:58]}  Nf6 {[%clk 0:03:01]} 5. Qe2 {[%clk 0:02:59]}  e5 {[%clk 0:03:01]} 6. O-O {[%clk 0:02:59]}  Be7 {[%clk 0:03:02]} 7. Na3 {[%clk 0:02:59]}  O-O {[%clk 0:03:01]} 8. d3 {[%clk 0:02:59]}  h6 {[%clk 0:03:01]} 9. Nc4 {[%clk 0:02:59]}  d6 {[%clk 0:03:00]} 10. h3 {[%clk 0:02:56]}  Be6 {[%clk 0:02:58]} 11. Ne3 {[%clk 0:02:56]}  Re8 {[%clk 0:02:58]} 12. Nh2 {[%clk 0:02:50]}  d5 {[%clk 0:02:54]} 13. Nhg4 {[%clk 0:02:26]}  Nxg4 {[%clk 0:02:45]} 14. hxg4 {[%clk 0:02:18]}  dxe4 {[%clk 0:02:37]} 15. dxe4 {[%clk 0:02:16]}  Bg5 {[%clk 0:02:23]} 16. c3 {[%clk 0:02:10]}  a6 {[%clk 0:02:05]} 17. Nd5 {[%clk 0:01:42]}  Bxc1 {[%clk 0:01:57]} 18. Raxc1 {[%clk 0:01:42]}  Ne7 {[%clk 0:01:44]} 19. Rcd1 {[%clk 0:01:39]}  Bxd5 {[%clk 0:01:42]} 20. exd5 {[%clk 0:01:39]}  Qd6 {[%clk 0:01:43]} 21. Rfe1 {[%clk 0:01:38]}  Ng6 {[%clk 0:01:40]} 22. Be4 {[%clk 0:01:28]}  Rad8 {[%clk 0:01:33]} 23. c4 {[%clk 0:01:11]}  Nf8 {[%clk 0:01:29]} 24. a3 {[%clk 0:01:06]}  b6 {[%clk 0:01:16]} 25. Qd2 {[%clk 0:01:05]}  Nd7 {[%clk 0:01:07]} 26. g5 {[%clk 0:01:02]}  hxg5 {[%clk 0:01:00]} 27. Qxg5 {[%clk 0:01:03]}  Qf6 {[%clk 0:00:58]} 28. Qh5 {[%clk 0:00:55]}  g6 {[%clk 0:00:58]} 29. Qh3 {[%clk 0:00:55]}  Kg7 {[%clk 0:00:57]} 30. Kg2 {[%clk 0:00:49]}  Qg5 {[%clk 0:00:41]} 31. Qh4 {[%clk 0:00:30]}  Qxh4 {[%clk 0:00:41]} 32. gxh4 {[%clk 0:00:31]}  f5 {[%clk 0:00:35]} 33. Bf3 {[%clk 0:00:28]}  e4 {[%clk 0:00:35]} 34. Be2 {[%clk 0:00:27]}  Ne5 {[%clk 0:00:34]} 35. Kg3 {[%clk 0:00:24]}  Kf6 {[%clk 0:00:33]} 36. Rb1 {[%clk 0:00:16]}  Rh8 {[%clk 0:00:16]} 37. Rh1 {[%clk 0:00:16]}  g5 {[%clk 0:00:13]} 38. hxg5+ {[%clk 0:00:14]}  Kxg5 {[%clk 0:00:14]} 39. f4+ {[%clk 0:00:02]}  exf3 {[%clk 0:00:15]} 40. Bxf3 {[%clk 0:00:03]}  Nxc4 {[%clk 0:00:16]} 41. Rbd1 {[%clk 0:00:02]}  Ne3 {[%clk 0:00:13]} 42. Rde1 {[%clk 0:00:01]}  f4+ {[%clk 0:00:12]} 43. Kf2 {[%clk 0:00:01]}  Rxh1 {[%clk 0:00:12]} 44. Rxh1 {[%clk 0:00:01]}  Kf6 {[%clk 0:00:08]} 45. Rh5 {[%clk 0:00:01]}  b5 {[%clk 0:00:08]} 0-1


[Site "https://www.chess.com"]

[Event "Titled Tuesday Blitz January 31 Early 2023"]
[White "Babazada, Khazar"]
[Black "Royal, Shreyas"]
[WhiteFideId "13413554"]
[BlackFideId "448869"]
[WhiteElo "2474"]
[BlackElo "2438"]
[Result "1-0"]
[Round "03"]
[TimeControl "180+2"]
[Date "2023.01.31"]
[WhiteClock "0:00:34"]
[BlackClock "0:00:08"]

1. Nf3 {[%clk 0:03:00]}  Nf6 {[%clk 0:02:55]} 2. c4 {[%clk 0:03:00]}  e6 {[%clk 0:02:56]} 3. Nc3 {[%clk 0:03:00]}  d5 {[%clk 0:02:56]} 4. d4 {[%clk 0:03:00]}  dxc4 {[%clk 0:02:54]} 5. e3 {[%clk 0:02:59]}  a6 {[%clk 0:02:54]} 6. a4 {[%clk 0:02:58]}  c5 {[%clk 0:02:54]} 7. Bxc4 {[%clk 0:02:58]}  Nc6 {[%clk 0:02:54]} 8. O-O {[%clk 0:02:56]}  Be7 {[%clk 0:02:50]} 9. dxc5 {[%clk 0:02:54]}  Qxd1 {[%clk 0:02:45]} 10. Rxd1 {[%clk 0:02:55]}  Bxc5 {[%clk 0:02:45]} 11. b3 {[%clk 0:02:56]}  O-O {[%clk 0:02:44]} 12. Bb2 {[%clk 0:02:52]}  Bd7 {[%clk 0:02:30]} 13. g4 {[%clk 0:02:41]}  Rfd8 {[%clk 0:02:23]} 14. g5 {[%clk 0:02:40]}  Ne8 {[%clk 0:02:23]} 15. Ne4 {[%clk 0:02:39]}  Be7 {[%clk 0:02:24]} 16. h4 {[%clk 0:02:36]}  Rac8 {[%clk 0:02:22]} 17. Rac1 {[%clk 0:02:35]}  Na5 {[%clk 0:02:16]} 18. Ne5 {[%clk 0:02:36]}  Nxc4 {[%clk 0:02:14]} 19. Nxc4 {[%clk 0:02:36]}  Bc6 {[%clk 0:02:09]} 20. Ned2 {[%clk 0:02:31]}  Nd6 {[%clk 0:02:04]} 21. Nb6 {[%clk 0:02:19]}  Rb8 {[%clk 0:02:04]} 22. Be5 {[%clk 0:02:14]}  f6 {[%clk 0:02:05]} 23. gxf6 {[%clk 0:02:04]}  gxf6 {[%clk 0:02:06]} 24. Bg3 {[%clk 0:02:03]}  Kf7 {[%clk 0:01:49]} 25. f3 {[%clk 0:01:57]}  Rg8 {[%clk 0:01:46]} 26. Kf2 {[%clk 0:01:57]}  Rbd8 {[%clk 0:01:47]} 27. e4 {[%clk 0:01:52]}  e5 {[%clk 0:01:29]} 28. Ndc4 {[%clk 0:01:51]}  Nxc4 {[%clk 0:01:29]} 29. Nxc4 {[%clk 0:01:51]}  Bc5+ {[%clk 0:01:28]} 30. Kg2 {[%clk 0:01:49]}  Bd4 {[%clk 0:01:29]} 31. Kh2 {[%clk 0:01:46]}  Rg6 {[%clk 0:01:26]} 32. Rc2 {[%clk 0:01:29]}  Rdg8 {[%clk 0:01:22]} 33. Nd6+ {[%clk 0:01:26]}  Kf8 {[%clk 0:01:08]} 34. Nf5 {[%clk 0:01:27]}  Bd7 {[%clk 0:01:08]} 35. Nxd4 {[%clk 0:01:18]}  Rxg3 {[%clk 0:01:08]} 36. Nf5 {[%clk 0:01:14]}  Bxf5 {[%clk 0:01:08]} 37. exf5 {[%clk 0:01:13]}  Ke7 {[%clk 0:00:50]} 38. Rc7+ {[%clk 0:01:11]}  Ke8 {[%clk 0:00:51]} 39. Rd2 {[%clk 0:01:02]}  R8g7 {[%clk 0:00:42]} 40. Rc8+ {[%clk 0:01:01]}  Ke7 {[%clk 0:00:42]} 41. Rb8 {[%clk 0:00:50]}  e4 {[%clk 0:00:29]} 42. Rxb7+ {[%clk 0:00:49]}  Ke8 {[%clk 0:00:29]} 43. Rxg7 {[%clk 0:00:46]}  Rxg7 {[%clk 0:00:29]} 44. Re2 {[%clk 0:00:47]}  Rb7 {[%clk 0:00:27]} 45. Re3 {[%clk 0:00:47]}  Ke7 {[%clk 0:00:26]} 46. Rxe4+ {[%clk 0:00:43]}  Kf7 {[%clk 0:00:27]} 47. b4 {[%clk 0:00:44]}  Rd7 {[%clk 0:00:27]} 48. Kg3 {[%clk 0:00:43]}  Rd1 {[%clk 0:00:27]} 49. Rc4 {[%clk 0:00:41]}  Rg1+ {[%clk 0:00:25]} 50. Kf4 {[%clk 0:00:41]}  Kg7 {[%clk 0:00:25]} 51. Rc6 {[%clk 0:00:39]}  Rb1 {[%clk 0:00:24]} 52. Rb6 {[%clk 0:00:40]}  Rb3 {[%clk 0:00:20]} 53. Ke4 {[%clk 0:00:39]}  Kh6 {[%clk 0:00:20]} 54. Rxf6+ {[%clk 0:00:39]}  Kh5 {[%clk 0:00:19]} 55. Rxa6 {[%clk 0:00:37]}  h6 {[%clk 0:00:20]} 56. b5 {[%clk 0:00:35]}  Rb4+ {[%clk 0:00:16]} 57. Ke5 {[%clk 0:00:35]}  Rb1 {[%clk 0:00:14]} 58. Kf6 {[%clk 0:00:34]}  Rg1 {[%clk 0:00:10]} 59. b6 {[%clk 0:00:33]}  Rg8 {[%clk 0:00:09]} 60. b7 {[%clk 0:00:33]}  Rf8+ {[%clk 0:00:09]} 61. Kg7 {[%clk 0:00:33]}  Rb8 {[%clk 0:00:08]} 62. Rxh6# {[%clk 0:00:34]} 1-0


[Site "https://www.chess.com"]

[Event "Titled Tuesday Blitz January 31 Early 2023"]
[White "Pulpan, Jakub"]
[Black "Zhu, Jiner"]
[WhiteFideId "302759"]
[BlackFideId "8608059"]
[WhiteElo "2427"]
[BlackElo "2507"]
[Result "0-1"]
[Round "03"]
[TimeControl "180+2"]
[Date "2023.01.31"]
[WhiteClock "0:00:19"]
[BlackClock "0:00:37"]

1. d4 {[%clk 0:02:40]}  Nf6 {[%clk 0:02:59]} 2. Nc3 {[%clk 0:02:36]}  d5 {[%clk 0:02:58]} 3. Bg5 {[%clk 0:02:32]}  e6 {[%clk 0:02:54]} 4. e4 {[%clk 0:02:29]}  dxe4 {[%clk 0:02:52]} 5. Nxe4 {[%clk 0:02:30]}  Be7 {[%clk 0:02:52]} 6. Bxf6 {[%clk 0:02:29]}  Bxf6 {[%clk 0:02:53]} 7. Nf3 {[%clk 0:02:28]}  b6 {[%clk 0:02:31]} 8. Bb5+ {[%clk 0:02:24]}  c6 {[%clk 0:02:28]} 9. Bc4 {[%clk 0:02:21]}  Bb7 {[%clk 0:02:27]} 10. Qe2 {[%clk 0:02:21]}  O-O {[%clk 0:02:26]} 11. Rd1 {[%clk 0:02:19]}  Qe7 {[%clk 0:02:23]} 12. g4 {[%clk 0:02:16]}  g6 {[%clk 0:02:09]} 13. h4 {[%clk 0:02:12]}  c5 {[%clk 0:02:00]} 14. h5 {[%clk 0:02:11]}  cxd4 {[%clk 0:01:57]} 15. hxg6 {[%clk 0:02:10]}  hxg6 {[%clk 0:01:57]} 16. Nxd4 {[%clk 0:01:53]}  Rd8 {[%clk 0:01:53]} 17. c3 {[%clk 0:01:09]}  Bg7 {[%clk 0:01:51]} 18. f3 {[%clk 0:00:57]}  Nd7 {[%clk 0:01:49]} 19. Ba6 {[%clk 0:00:35]}  Bxe4 {[%clk 0:01:39]} 20. Qxe4 {[%clk 0:00:30]}  Nc5 {[%clk 0:01:37]} 21. Qe2 {[%clk 0:00:30]}  Nxa6 {[%clk 0:01:34]} 22. Qxa6 {[%clk 0:00:30]}  Bxd4 {[%clk 0:01:35]} 23. cxd4 {[%clk 0:00:30]}  Qb4+ {[%clk 0:01:34]} 24. Kf1 {[%clk 0:00:30]}  Rxd4 {[%clk 0:01:30]} 25. Rxd4 {[%clk 0:00:30]}  Qxd4 {[%clk 0:01:31]} 26. Qe2 {[%clk 0:00:29]}  Rd8 {[%clk 0:01:09]} 27. Kg2 {[%clk 0:00:28]}  Kg7 {[%clk 0:00:48]} 28. b3 {[%clk 0:00:24]}  a5 {[%clk 0:00:44]} 29. Rc1 {[%clk 0:00:23]}  Rd5 {[%clk 0:00:43]} 30. Rc4 {[%clk 0:00:21]}  Qd2 {[%clk 0:00:41]} 31. Rc2 {[%clk 0:00:17]}  Qf4 {[%clk 0:00:40]} 32. Rc4 {[%clk 0:00:17]}  Rd2 {[%clk 0:00:38]} 33. Rxf4 {[%clk 0:00:17]}  Rxe2+ {[%clk 0:00:38]} 34. Kg3 {[%clk 0:00:18]}  Rxa2 {[%clk 0:00:39]} 35. b4 {[%clk 0:00:19]}  Ra4 {[%clk 0:00:37]} 0-1


[Site "https://www.chess.com"]

[Event "Titled Tuesday Blitz January 31 Early 2023"]
[White "Kalogeris, Ioannis"]
[Black "De Silva, L M S T"]
[WhiteFideId "4239563"]
[BlackFideId "9953698"]
[WhiteElo "2423"]
[BlackElo "2452"]
[Result "0-1"]
[Round "03"]
[TimeControl "180+2"]
[Date "2023.01.31"]
[WhiteClock "0:00:24"]
[BlackClock "0:01:07"]

1. e4 {[%clk 0:03:00]}  c6 {[%clk 0:02:58]} 2. d4 {[%clk 0:03:00]}  d5 {[%clk 0:02:58]} 3. e5 {[%clk 0:03:01]}  Bf5 {[%clk 0:02:58]} 4. Nf3 {[%clk 0:03:01]}  e6 {[%clk 0:02:55]} 5. Nbd2 {[%clk 0:03:01]}  h6 {[%clk 0:02:54]} 6. Nb3 {[%clk 0:03:02]}  Nd7 {[%clk 0:02:54]} 7. Be2 {[%clk 0:03:02]}  Ne7 {[%clk 0:02:53]} 8. O-O {[%clk 0:03:01]}  Bh7 {[%clk 0:02:53]} 9. a4 {[%clk 0:03:01]}  a5 {[%clk 0:02:52]} 10. Bd2 {[%clk 0:03:00]}  g5 {[%clk 0:02:50]} 11. h3 {[%clk 0:02:46]}  Bg7 {[%clk 0:02:42]} 12. Rc1 {[%clk 0:02:35]}  Ng6 {[%clk 0:02:38]} 13. c4 {[%clk 0:02:29]}  O-O {[%clk 0:02:37]} 14. cxd5 {[%clk 0:02:28]}  cxd5 {[%clk 0:02:38]} 15. Bb5 {[%clk 0:02:12]}  Nf4 {[%clk 0:02:21]} 16. Bxa5 {[%clk 0:02:07]}  b6 {[%clk 0:01:50]} 17. Bb4 {[%clk 0:02:00]}  Re8 {[%clk 0:01:50]} 18. Rc6 {[%clk 0:01:58]}  Be4 {[%clk 0:01:36]} 19. Nbd2 {[%clk 0:01:50]}  Bd3 {[%clk 0:01:33]} 20. Re1 {[%clk 0:01:40]}  Bxb5 {[%clk 0:01:32]} 21. axb5 {[%clk 0:01:22]}  Nd3 {[%clk 0:01:32]} 22. Bd6 {[%clk 0:01:03]}  Nxe1 {[%clk 0:01:30]} 23. Nxe1 {[%clk 0:01:02]}  Rc8 {[%clk 0:01:28]} 24. Qa4 {[%clk 0:00:59]}  Nb8 {[%clk 0:01:25]} 25. Rc3 {[%clk 0:00:54]}  Rxc3 {[%clk 0:01:21]} 26. bxc3 {[%clk 0:00:55]}  Bf8 {[%clk 0:01:22]} 27. Bxf8 {[%clk 0:00:54]}  Rxf8 {[%clk 0:01:23]} 28. Nd3 {[%clk 0:00:53]}  Qc7 {[%clk 0:01:22]} 29. Qa3 {[%clk 0:00:48]}  Rc8 {[%clk 0:01:21]} 30. Nb1 {[%clk 0:00:37]}  Qc4 {[%clk 0:01:19]} 31. Nb4 {[%clk 0:00:35]}  Qxb5 {[%clk 0:01:19]} 32. h4 {[%clk 0:00:34]}  Nc6 {[%clk 0:01:18]} 33. hxg5 {[%clk 0:00:33]}  Nxb4 {[%clk 0:01:15]} 34. cxb4 {[%clk 0:00:33]}  Qe2 {[%clk 0:01:12]} 35. gxh6 {[%clk 0:00:24]}  Qd1+ {[%clk 0:01:07]} 36. Kh2 {[%clk 0:00:24]}  Qxb1 {[%clk 0:01:07]} 0-1


[Site "https://www.chess.com"]